fUST/lending_fUST_20250607
["ID","MTS","AMOUNT","RATE_DAILY","PERIOD"]
[364795315,1749244237829,-420.0,0.00019452,2]
[364795316,1749244237838,-401.65195025,0.00019452,2]
[364795317,1749244237848,-440.0,0.00019452,2]
[364795318,1749244237857,-440.0,0.00019452,2]
[364795319,1749244237867,-420.0,0.00019452,2]
[364795320,1749244237877,-420.0,0.00019452,2]
[364795321,1749244237886,-410.0,0.00019452,2]
[364795322,1749244237895,-420.0,0.00019452,2]
[364795323,1749244237908,-420.0,0.00019452,2]
[364795325,1749244237917,-401.74044434,0.00019452,2]
[364795326,1749244237927,-420.0,0.00019452,2]
[364795327,1749244237936,-420.0,0.00019452,2]
[364795328,1749244237946,-420.0,0.00019452,2]
[364795329,1749244237956,-420.0,0.00019452,2]
[364795330,1749244237966,-420.0,0.00019452,2]
[364795332,1749244237976,-420.0,0.00019452,2]
[364795333,1749244237985,-292.48712963,0.00019452,2]
[364795334,1749244237995,-440.0,0.00019452,2]
[364795335,1749244238004,-420.0,0.00019452,2]
[364795336,1749244238014,-420.0,0.00019452,2]
[364795337,1749244238023,-420.0,0.00019452,2]
[364795338,1749244238033,-420.0,0.00019452,2]
[364795339,1749244238043,-420.0,0.00019452,2]
[364795340,1749244238052,-420.0,0.00019452,2]
[364795341,1749244238061,-420.0,0.00019452,2]
[364795342,1749244238070,-420.0,0.00019452,2]
[364795343,1749244238083,-420.0,0.00019452,2]
[364795344,1749244238095,-420.0,0.00019452,2]
[364795345,1749244238104,-440.0,0.00019452,2]
[364795346,1749244238115,-420.0,0.00019452,2]
[364795347,1749244238124,-440.0,0.00019452,2]
[364795348,1749244238134,-420.0,0.00019452,2]
[364795349,1749244238143,-420.0,0.00019452,2]
[364795350,1749244238155,-420.0,0.00019452,2]
[364795351,1749244238164,-420.0,0.00019452,2]
[364795352,1749244238173,-420.0,0.00019452,2]
[364795354,1749244238182,-420.0,0.00019452,2]
[364795356,1749244238192,-420.0,0.00019452,2]
[364795357,1749244238201,-420.0,0.00019452,2]
[364795358,1749244238212,-420.0,0.00019452,2]
[364795359,1749244238221,-420.0,0.00019452,2]
[364795360,1749244238231,-420.0,0.00019452,2]
[364795362,1749244238241,-420.0,0.00019452,2]
[364795364,1749244238250,-420.0,0.00019452,2]
[364795366,1749244238260,-184.52727387,0.00019452,2]
[364795368,1749244238270,-420.0,0.00019452,2]
[364795370,1749244238279,-421.27786161,0.00019452,2]
[364795372,1749244238289,-420.0,0.00019452,2]
[364795374,1749244238298,-440.0,0.00019452,2]
[364795376,1749244238307,-440.0,0.00019452,2]
[364795378,1749244238316,-420.0,0.00019452,2]
[364795379,1749244238325,-420.0,0.00019452,2]
[364795381,1749244238335,-566.35867665,0.00019452,2]
[364795384,1749244238344,-420.0,0.00019452,2]
[364795385,1749244238353,-420.0,0.00019452,2]
[364795387,1749244238363,-420.0,0.00019452,2]
[364795389,1749244238372,-420.0,0.00019452,2]
[364795391,1749244238381,-420.0,0.00019452,2]
[364795393,1749244238391,-420.0,0.00019452,2]
[364795395,1749244238401,-420.0,0.00019452,2]
[364795397,1749244238411,-420.0,0.00019452,2]
[364795399,1749244238420,-376.66,0.00019452,2]
[364795401,1749244238431,-420.0,0.00019452,2]
[364795403,1749244238439,-420.0,0.00019452,2]
[364795405,1749244238448,-420.0,0.00019452,2]
[364795407,1749244238458,-156.81607004,0.00019452,2]
[364795409,1749244238467,-420.0,0.00019452,2]
[364795411,1749244238475,-420.0,0.00019452,2]
[364795413,1749244238484,-220.64736513,0.00019452,2]
[364795415,1749244238493,-420.0,0.00019452,2]
[364795417,1749244238503,-420.0,0.00019452,2]
[364795419,1749244238512,-460.0,0.00019452,2]
[364795421,1749244238522,-420.0,0.00019452,2]
[364795423,1749244238531,-420.0,0.00019452,2]
[364795425,1749244238540,-420.0,0.00019452,2]
[364795427,1749244238549,-420.0,0.00019452,2]
[364795429,1749244238558,-440.0,0.00019452,2]
[364795431,1749244238567,-499.66720677,0.00019452,2]
[364795433,1749244238576,-420.0,0.00019452,2]
[364795435,1749244238587,-310.04501334,0.00019452,2]
[364795437,1749244238599,-420.0,0.00019452,2]
[364795439,1749244238608,-420.0,0.00019452,2]
[364795441,1749244238617,-413.52,0.00019452,2]
[364795443,1749244238627,-414.09812731,0.00019452,2]
[364795445,1749244238637,-420.0,0.00019452,2]
[364795447,1749244238646,-180.59198721,0.00019452,2]
[364795449,1749244238655,-420.0,0.00019452,2]
[364795451,1749244238665,-420.0,0.00019452,2]
[364795453,1749244238674,-440.0,0.00019452,2]
[364795455,1749244238684,-420.0,0.00019452,2]
[364795457,1749244238693,-440.0,0.00019452,2]
[364795459,1749244238704,-751.52,0.00019452,2]
[364795461,1749244238713,-440.0,0.00019452,2]
[364795463,1749244238722,-420.0,0.00019452,2]
[364795465,1749244238732,-440.0,0.00019452,2]
[364795467,1749244238743,-380.0,0.00019452,2]
[364795469,1749244238752,-440.0,0.00019452,2]
[364795471,1749244238761,-411.97196986,0.00019452,2]
[364795473,1749244238771,-440.0,0.00019452,2]
[364795475,1749244238779,-420.0,0.00019452,2]
[364795477,1749244238789,-420.0,0.00019452,2]
[364795479,1749244238798,-420.0,0.00019452,2]
[364795481,1749244238807,-420.0,0.00019452,2]
[364795483,1749244238816,-420.0,0.00019452,2]
[364795485,1749244238826,-430.0,0.00019452,2]
[364795487,1749244238835,-430.0,0.00019452,2]
[364795488,1749244238844,-440.0,0.00019452,2]
[364795490,1749244238854,-440.0,0.00019452,2]
[364795492,1749244238863,-420.0,0.00019452,2]
[364795494,1749244238873,-420.0,0.00019452,2]
[364795496,1749244238882,-440.0,0.00019452,2]
[364795498,1749244238892,-440.0,0.00019452,2]
[364795499,1749244238901,-440.0,0.00019452,2]
[364795500,1749244238911,-790.92,0.00019452,2]
[364795501,1749244238920,-420.0,0.00019452,2]
[364795502,1749244238929,-420.0,0.00019452,2]
[364795503,1749244239032,-440.0,0.00019452,2]
[364795504,1749244239042,-440.0,0.00019452,2]
[364795505,1749244239052,-430.0,0.00019452,2]
[364795506,1749244239061,-1317.2,0.00019452,2]
[364795507,1749244239071,-440.0,0.00019452,2]
[364795508,1749244239080,-440.0,0.00019452,2]
[364795509,1749244239089,-440.0,0.00019452,2]
[364795510,1749244239098,-522.75,0.00019452,2]
[364795511,1749244239107,-449.93233988,0.00019452,2]
[364795512,1749244239117,-420.0,0.00019452,2]
[364795513,1749244239126,-922.36,0.00019452,2]
[364795514,1749244239135,-295.50014071,0.00019452,2]
[364795515,1749244239145,-440.0,0.00019452,2]
[364795516,1749244239155,-440.0,0.00019452,2]
[364795517,1749244239168,-420.0,0.00019452,2]
[364795518,1749244239187,-440.0,0.00019452,2]
[364795519,1749244239196,-605.69,0.00019452,2]
[364795520,1749244239212,-390.0,0.00019452,2]
[364795521,1749244239229,-420.0,0.00019452,2]
[364795522,1749244239239,-420.0,0.00019452,2]
[364795523,1749244239248,-440.0,0.00019452,2]
[364795524,1749244239258,-420.0,0.00019452,2]
[364795525,1749244239267,-440.0,0.00019452,2]
[364795526,1749244239277,-420.0,0.00019452,2]
[364795527,1749244239286,-440.0,0.00019452,2]
[364795528,1749244239296,-422.12261426,0.00019452,2]
[364795529,1749244239305,-160.6009728,0.00019452,2]
[364795530,1749244239315,-440.0,0.00019452,2]
[364795531,1749244239324,-440.0,0.00019452,2]
[364795532,1749244239333,-420.0,0.00019452,2]
[364795533,1749244239343,-420.0,0.00019452,2]
[364795534,1749244239352,-575.03264998,0.00019452,2]
[364795535,1749244239363,-420.0,0.00019452,2]
[364795536,1749244239374,-440.0,0.00019452,2]
[364795537,1749244239383,-420.0,0.00019452,2]
[364795538,1749244239394,-748.21,0.00019452,2]
[364795539,1749244239403,-440.0,0.00019452,2]
[364795540,1749244239412,-828.93,0.00019452,2]
[364795541,1749244239422,-440.0,0.00019452,2]
[364795542,1749244239431,-232.01185887,0.00019452,2]
[364795543,1749244239441,-440.0,0.00019452,2]
[364795544,1749244239451,-484.45,0.00019452,2]
[364795545,1749244239460,-523.65,0.00019452,2]
[364795546,1749244239470,-440.0,0.00019452,2]
[364795547,1749244239479,-440.0,0.00019452,2]
[364795548,1749244239489,-440.0,0.00019452,2]
[364795549,1749244239498,-420.0,0.00019452,2]
[364795550,1749244239508,-440.0,0.00019452,2]
[364795551,1749244239518,-676.62,0.00019452,2]
[364795552,1749244239527,-420.0,0.00019452,2]
[364795553,1749244239536,-420.0,0.00019452,2]
[364795554,1749244239546,-411.79375514,0.00019452,2]
[364795555,1749244239555,-203.13799503,0.00019452,2]
[364795556,1749244239564,-420.0,0.00019452,2]
[364795557,1749244239573,-440.0,0.00019452,2]
[364795558,1749244239583,-420.0,0.00019452,2]
[364795559,1749244239595,-1113.46,0.00019452,2]
[364795560,1749244239604,-420.0,0.00019452,2]
[364795561,1749244239614,-440.0,0.00019452,2]
[364795562,1749244239623,-300.09621385,0.00019452,2]
[364795563,1749244239635,-995.8,0.00019452,2]
[364795564,1749244239644,-450.0,0.00019452,2]
[364795565,1749244239655,-776.18,0.00019452,2]
[364795566,1749244239667,-420.0,0.00019452,2]
[364795567,1749244239677,-1310.62,0.00019452,2]
[364795568,1749244239686,-420.0,0.00019452,2]
[364795569,1749244239696,-440.0,0.00019452,2]
[364795570,1749244239706,-420.0,0.00019452,2]
[364795571,1749244239715,-435.84376487,0.00019453,2]
[364795572,1749244239725,-500.0,0.00019519,2]
[364795573,1749244239734,-1200.0,0.00019666,2]
[364795574,1749244239744,-784.86746273,0.00019721,2]
[364795575,1749244239754,-440.0,0.00019726,2]
[364795576,1749244239764,-420.0,0.00019726,2]
[364795577,1749244239773,-410.0,0.00019726,2]
[364795578,1749244239784,-420.0,0.00019726,2]
[364795579,1749244239793,-420.0,0.00019726,2]
[364795580,1749244239803,-420.0,0.00019726,2]
[364795581,1749244239812,-420.0,0.00019726,2]
[364795582,1749244239822,-420.0,0.00019726,2]
[364795583,1749244239832,-440.0,0.00019726,2]
[364795584,1749244239842,-420.0,0.00019726,2]
[364795585,1749244239852,-420.0,0.00019726,2]
[364795586,1749244239861,-300.0,0.00019726,2]
[364795587,1749244239871,-751.52,0.00019726,2]
[364795588,1749244239881,-440.0,0.00019726,2]
[364795589,1749244239891,-420.0,0.00019726,2]
[364795590,1749244239900,-440.0,0.00019726,2]
[364795591,1749244239910,-440.0,0.00019726,2]
[364795592,1749244239920,-422.07176566,0.00019726,2]
[364795593,1749244239929,-410.0,0.00019726,2]
[364795594,1749244239938,-440.0,0.00019726,2]
[364795595,1749244239948,-420.0,0.00019726,2]
[364795596,1749244239958,-440.0,0.00019726,2]
[364795597,1749244239967,-790.92,0.00019726,2]
[364795598,1749244239976,-430.0,0.00019726,2]
[364795599,1749244239986,-440.0,0.00019726,2]
[364795600,1749244239995,-1317.2,0.00019726,2]
[364795601,1749244240005,-420.0,0.00019726,2]
[364795602,1749244240015,-420.0,0.00019726,2]
[364795603,1749244240024,-440.0,0.00019726,2]
[364795604,1749244240034,-522.75,0.00019726,2]
[364795605,1749244240043,-922.36,0.00019726,2]
[364795606,1749244240052,-440.0,0.00019726,2]
[364795607,1749244240062,-440.0,0.00019726,2]
[364795608,1749244240071,-440.0,0.00019726,2]
[364795609,1749244240080,-605.69,0.00019726,2]
[364795610,1749244240090,-440.0,0.00019726,2]
[364795611,1749244240099,-440.0,0.00019726,2]
[364795612,1749244240108,-440.0,0.00019726,2]
[364795613,1749244240117,-587.02790375,0.00019726,2]
[364795614,1749244240128,-420.0,0.00019726,2]
[364795615,1749244240139,-440.0,0.00019726,2]
[364795616,1749244240148,-748.21,0.00019726,2]
[364795617,1749244240159,-440.0,0.00019726,2]
[364795618,1749244240168,-828.93,0.00019726,2]
[364795619,1749244240179,-440.0,0.00019726,2]
[364795620,1749244240188,-420.0,0.00019726,2]
[364795621,1749244240199,-420.0,0.00019726,2]
[364795622,1749244240208,-523.65,0.00019726,2]
[364795623,1749244240217,-165.70428483,0.00019726,2]
[364795624,1749244240226,-467.78863111,0.00019726,2]
[364795625,1749244240236,-170.36,0.00019726,2]
[364795626,1749244240245,-676.62,0.00019726,2]
[364795627,1749244240256,-440.0,0.00019726,2]
[364795628,1749244240265,-1113.46,0.00019726,2]
[364795629,1749244240274,-995.8,0.00019726,2]
[364795630,1749244240283,-776.18,0.00019726,2]
[364795631,1749244240293,-1310.62,0.00019726,2]
[364795632,1749244240304,-440.0,0.00019726,2]
[364795633,1749244240314,-471.08676656,0.000199,2]
[364795634,1749244240324,-157.3553811,0.0002,2]
[364795635,1749244240333,-400.0,0.0002,2]
[364795636,1749244240342,-751.52,0.0002,2]
[364795637,1749244240352,-440.0,0.0002,2]
[364795638,1749244240361,-440.0,0.0002,2]
[364795639,1749244240370,-440.0,0.0002,2]
[364795640,1749244240380,-440.0,0.0002,2]
[364795641,1749244240389,-480.16,0.0002,2]
[364795642,1749244240399,-790.92,0.0002,2]
[364795643,1749244240408,-440.0,0.0002,2]
[364795644,1749244240418,-1317.2,0.0002,2]
[364795645,1749244240427,-440.0,0.0002,2]
[364795646,1749244240438,-522.75,0.0002,2]
[364795647,1749244240447,-922.36,0.0002,2]
[364795648,1749244240457,-359.70915768,0.0002,2]
[364795649,1749244240466,-440.0,0.0002,2]
[364795650,1749244240475,-420.0,0.0002,2]
[364795651,1749244240484,-605.69,0.0002,2]
[364795652,1749244240493,-440.0,0.0002,2]
[364795653,1749244240502,-420.0,0.0002,2]
[364795654,1749244240511,-400.0,0.0002,2]
[364795655,1749244240521,-420.0,0.0002,2]
[364795656,1749244240530,-748.21,0.0002,2]
[364795657,1749244240540,-469.52115178,0.0002,2]
[364795658,1749244240549,-828.93,0.0002,2]
[364795659,1749244240559,-440.0,0.0002,2]
[364795660,1749244240568,-523.65,0.0002,2]
[364795661,1749244240578,-676.62,0.0002,2]
[364795662,1749244240587,-440.0,0.0002,2]
[364795663,1749244240600,-1113.46,0.0002,2]
[364795664,1749244240609,-995.8,0.0002,2]
[364795665,1749244240618,-776.18,0.0002,2]
[364795666,1749244240628,-1310.62,0.0002,2]
[364795667,1749244240638,-460.68,0.0002,2]
[364795669,1749244240647,-1000.0,0.00020067,2]
[364795671,1749244240657,-315.155,0.00020126,2]
[364795673,1749244240666,-160.0,0.00020186,2]
[364795675,1749244240675,-370.486549,0.00020187,2]
[364795677,1749244240684,-160.0,0.00020189,2]
[364795679,1749244240694,-160.0,0.00020189,2]
[364795681,1749244240703,-229.52673067,0.00020189,2]
[364795683,1749244240712,-423.83542519,0.00020189,2]
[364795684,1749244240722,-842.5625,0.00020189,2]
[364795685,1749244240731,-160.0,0.00020189,2]
[364795686,1749244240740,-834.50537533,0.00020189,2]
[364795687,1749244240749,-751.52,0.00020273,2]
[364795688,1749244240758,-440.0,0.00020273,2]
[364795689,1749244240767,-440.0,0.00020273,2]
[364795690,1749244240777,-440.0,0.00020273,2]
[364795691,1749244240786,-440.0,0.00020273,2]
[364795692,1749244240795,-790.92,0.00020273,2]
[364795693,1749244240805,-440.0,0.00020273,2]
[364795694,1749244240815,-1317.2,0.00020273,2]
[364795695,1749244240824,-440.0,0.00020273,2]
[364795696,1749244240834,-522.75,0.00020273,2]
[364795697,1749244240843,-922.36,0.00020273,2]
[364795698,1749244240852,-440.0,0.00020273,2]
[364795699,1749244240861,-605.69,0.00020273,2]
[364795700,1749244240871,-440.0,0.00020273,2]
[364795701,1749244240881,-748.21,0.00020273,2]
[364795702,1749244240890,-828.93,0.00020273,2]
[364795703,1749244240900,-440.0,0.00020273,2]
[364795704,1749244240910,-523.65,0.00020273,2]
[364795705,1749244240920,-676.62,0.00020273,2]
[364795706,1749244240930,-535.37300411,0.00020273,2]
[364795707,1749244240939,-1113.46,0.00020273,2]
[364795709,1749244240949,-995.8,0.00020273,2]
[364795711,1749244240958,-776.18,0.00020273,2]
[364795713,1749244240968,-1310.62,0.00020273,2]
[364795715,1749244240978,-500.0,0.00020547,2]
[364795717,1749244240988,-751.52,0.00020547,2]
[364795719,1749244240997,-440.0,0.00020547,2]
[364795721,1749244241006,-440.0,0.00020547,2]
[364795723,1749244241015,-440.0,0.00020547,2]
[364795725,1749244241025,-440.0,0.00020547,2]
[364795727,1749244241034,-790.92,0.00020547,2]
[364795729,1749244241044,-440.0,0.00020547,2]
[364795731,1749244241053,-1317.2,0.00020547,2]
[364795733,1749244241063,-230.49,0.00020547,2]
[364795735,1749244241072,-522.75,0.00020547,2]
[364795737,1749244241081,-922.36,0.00020547,2]
[364795739,1749244241091,-440.0,0.00020547,2]
[364795741,1749244241100,-605.69,0.00020547,2]
[364795743,1749244241109,-440.0,0.00020547,2]
[364795745,1749244241119,-748.21,0.00020547,2]
[364795747,1749244241128,-828.93,0.00020547,2]
[364795749,1749244241137,-440.0,0.00020547,2]
[364795751,1749244241146,-523.65,0.00020547,2]
[364795753,1749244241156,-676.62,0.00020547,2]
[364795755,1749244241167,-1113.46,0.00020547,2]
[364795757,1749244241176,-995.8,0.00020547,2]
[364795759,1749244241186,-776.18,0.00020547,2]
[364795761,1749244241195,-1310.62,0.00020547,2]
[364795763,1749244241204,-500.0,0.00020615,2]
[364795765,1749244241213,-364.4406513,0.00020712,2]
[364795768,1749244241225,-1200.0,0.00020762,2]
[364795770,1749244241234,-151.0,0.00020793,2]
[364795771,1749244241243,-151.0,0.00020793,2]
[364795773,1749244241252,-229.96569739,0.0002082,2]
[364795776,1749244241263,-151.0,0.0002082,2]
[364795777,1749244241273,-751.52,0.00020821,2]
[364795780,1749244241282,-440.0,0.00020821,2]
[364795781,1749244241291,-196.15538955,0.00020821,2]
[364795784,1749244241301,-440.0,0.00020821,2]
[364795786,1749244241310,-440.0,0.00020821,2]
[364795788,1749244241319,-790.92,0.00020821,2]
[364795790,1749244241328,-260.41,0.00020821,2]
[364795792,1749244241337,-1317.2,0.00020821,2]
[364795794,1749244241347,-522.75,0.00020821,2]
[364795796,1749244241356,-922.36,0.00020821,2]
[364795798,1749244241364,-440.0,0.00020821,2]
[364795800,1749244241374,-605.69,0.00020821,2]
[364795802,1749244241383,-440.0,0.00020821,2]
[364795804,1749244241392,-748.21,0.00020821,2]
[364795806,1749244241401,-828.93,0.00020821,2]
[364795808,1749244241410,-440.0,0.00020821,2]
[364795810,1749244241419,-523.65,0.00020821,2]
[364795812,1749244241428,-676.62,0.00020821,2]
[364795814,1749244241437,-1113.46,0.00020821,2]
[364795816,1749244241446,-995.8,0.00020821,2]
[364795818,1749244241455,-776.18,0.00020821,2]
[364795820,1749244241464,-1310.62,0.00020821,2]
[364795822,1749244241473,-151.0,0.00020848,2]
[364795824,1749244241483,-471.08676655,0.0002085,2]
[364795826,1749244241492,-420.0,0.00020897,2]
[364795828,1749244241502,-420.0,0.00020898,2]
[364795839,1749244241602,-1331.63815491,0.000209,4]
[364795841,1749244241612,-1331.63815468,0.00021038,4]
[364795843,1749244241622,-751.52,0.00021095,2]
[364795845,1749244241633,-440.0,0.00021095,2]
[364795848,1749244241642,-440.0,0.00021095,2]
[364795849,1749244241652,-440.0,0.00021095,2]
[364795851,1749244241661,-790.92,0.00021095,2]
[364795854,1749244241673,-1317.2,0.00021095,2]
[364795856,1749244241682,-522.75,0.00021095,2]
[364795858,1749244241691,-922.36,0.00021095,2]
[364795860,1749244241701,-440.0,0.00021095,2]
[364795862,1749244241710,-605.69,0.00021095,2]
[364795863,1749244241719,-440.0,0.00021095,2]
[364795866,1749244241728,-748.21,0.00021095,2]
[364795868,1749244241738,-828.93,0.00021095,2]
[364795870,1749244241747,-440.0,0.00021095,2]
[364795872,1749244241757,-523.65,0.00021095,2]
[364795874,1749244241766,-676.62,0.00021095,2]
[364795876,1749244241775,-1113.46,0.00021095,2]
[364795878,1749244241785,-995.8,0.00021095,2]
[364795880,1749244241794,-776.18,0.00021095,2]
[364795882,1749244241803,-1310.62,0.00021095,2]
[364795884,1749244241812,-1331.63815468,0.00021176,4]
[364795886,1749244241821,-1331.63815468,0.00021314,5]
[364795888,1749244241830,-751.52,0.00021369,2]
[364795890,1749244241839,-440.0,0.00021369,2]
[364795892,1749244241848,-440.0,0.00021369,2]
[364795894,1749244241858,-440.0,0.00021369,2]
[364795896,1749244241867,-790.92,0.00021369,2]
[364795898,1749244241876,-1317.2,0.00021369,2]
[364795900,1749244241885,-522.75,0.00021369,2]
[364795902,1749244241896,-922.36,0.00021369,2]
[364795904,1749244241905,-421.84,0.00021369,2]
[364795906,1749244241914,-605.69,0.00021369,2]
[364795908,1749244241923,-440.0,0.00021369,2]
[364795910,1749244241933,-748.21,0.00021369,2]
[364795912,1749244241942,-828.93,0.00021369,2]
[364795914,1749244241951,-440.0,0.00021369,2]
[364795916,1749244241961,-523.65,0.00021369,2]
[364795918,1749244241972,-676.62,0.00021369,2]
[364795920,1749244241981,-1113.46,0.00021369,2]
[364795922,1749244241991,-995.8,0.00021369,2]
[364795924,1749244242000,-776.18,0.00021369,2]
[364795926,1749244242010,-1310.62,0.00021369,2]
[364795928,1749244242020,-1331.63815468,0.00021452,5]
[364795930,1749244242029,-1331.63815468,0.0002159,5]
[364795932,1749244242038,-500.0,0.000216,2]
[364795934,1749244242047,-500.0,0.000216,2]
[364795936,1749244242056,-600.0,0.000216,2]
[364795938,1749244242065,-357.84,0.00021631,10]
[364795940,1749244242074,-682.38,0.00021631,10]
[364795943,1749244242084,-68200.94017449,0.00021641,2]
[364795944,1749244242093,-151.0,0.00021641,2]
[364795947,1749244242102,-1995.0,0.00021641,2]
[364795948,1749244242112,-1995.0,0.00021641,2]
[364795951,1749244242121,-751.52,0.00021643,2]
[364795953,1749244242131,-440.0,0.00021643,2]
[364795955,1749244242139,-440.0,0.00021643,2]
[364795957,1749244242149,-440.0,0.00021643,2]
[364795959,1749244242158,-790.92,0.00021643,2]
[364795961,1749244242167,-1317.2,0.00021643,2]
[364795963,1749244242176,-522.75,0.00021643,2]
[364795964,1749244242209,-922.36,0.00021643,2]
[364795966,1749244242219,-605.69,0.00021643,2]
[364795969,1749244242228,-440.0,0.00021643,2]
[364795971,1749244242238,-748.21,0.00021643,2]
[364795973,1749244242247,-828.93,0.00021643,2]
[364795975,1749244242257,-440.0,0.00021643,2]
[364795977,1749244242266,-523.65,0.00021643,2]
[364795979,1749244242275,-676.62,0.00021643,2]
[364795981,1749244242285,-1113.46,0.00021643,2]
[364795983,1749244242294,-995.8,0.00021643,2]
[364795985,1749244242303,-776.18,0.00021643,2]
[364795987,1749244242312,-1310.62,0.00021643,2]
[364795989,1749244242321,-207.4,0.00021661,2]
[364795991,1749244242330,-1331.63815468,0.00021728,5]
[364795993,1749244242342,-471.08676655,0.000218,2]
[364795995,1749244242351,-500.0,0.00021833,2]
[364795997,1749244242360,-150.0,0.00021858,2]
[364795999,1749244242369,-962.0,0.00021858,2]
[364796001,1749244242378,-709.0,0.00021858,2]
[364796003,1749244242387,-2224.0,0.00021858,2]
[364796005,1749244242396,-405.0,0.00021858,2]
[364796007,1749244242405,-1200.0,0.00021858,2]
[364796009,1749244242414,-200.38422,0.00021858,2]
[364796011,1749244242423,-1331.63815468,0.00021866,6]
[364796013,1749244242434,-400.0,0.00021917,2]
[364796015,1749244242444,-400.0,0.00021917,2]
[364796017,1749244242454,-400.0,0.00021917,2]
[364796019,1749244242463,-400.0,0.00021917,2]
[364796021,1749244242473,-400.0,0.00021917,2]
[364796023,1749244242482,-400.0,0.00021917,2]
[364796025,1749244242491,-400.0,0.00021917,2]
[364796027,1749244242501,-400.0,0.00021917,2]
[364796029,1749244242511,-400.0,0.00021917,2]
[364796031,1749244242520,-400.0,0.00021917,2]
[364796033,1749244242530,-400.0,0.00021917,2]
[364796035,1749244242539,-500.0,0.00021917,2]
[364796037,1749244242549,-751.52,0.00021917,2]
[364796039,1749244242558,-440.0,0.00021917,2]
[364796041,1749244242567,-382.74,0.00021917,2]
[364796043,1749244242576,-440.0,0.00021917,2]
[364796045,1749244242585,-790.92,0.00021917,2]
[364796047,1749244242597,-194.74946039,0.00021917,2]
[364796049,1749244242607,-1317.2,0.00021917,2]
[364796051,1749244242617,-522.75,0.00021917,2]
[364796053,1749244242627,-922.36,0.00021917,2]
[364796055,1749244242637,-605.69,0.00021917,2]
[364796057,1749244242646,-440.0,0.00021917,2]
[364796059,1749244242656,-748.21,0.00021917,2]
[364796061,1749244242666,-828.93,0.00021917,2]
[364796063,1749244242676,-440.0,0.00021917,2]
[364796065,1749244242685,-523.65,0.00021917,2]
[364796067,1749244242695,-676.62,0.00021917,2]
[364796069,1749244242706,-1113.46,0.00021917,2]
[364796071,1749244242715,-995.8,0.00021917,2]
[364796073,1749244242724,-776.18,0.00021917,2]
[364796075,1749244242734,-1310.62,0.00021917,2]
[364796077,1749244242743,-347.03,0.00022,7]
[364796079,1749244242752,-393.11,0.00022,2]
[364796081,1749244242762,-10215.21132965,0.00022,2]
[364796083,1749244242771,-5364.40417707,0.00022,2]
[364796085,1749244242781,-1331.63815468,0.00022003,6]
[364796087,1749244242790,-1331.63815468,0.00022141,6]
[364796089,1749244242799,-1000.0,0.00022148,2]
[364796091,1749244242808,-1000.0,0.00022148,2]
[364796093,1749244242817,-1200.0,0.00022148,2]